[Event "*** Titled Tuesday Blitz"]
[Site "Chess.com"]
[Date "2020.04.28"]
[Round "5"]
[White "Uzbektiger1963"]
[Black "2L8IWUN"]
[Result "1-0"]
[WhiteElo "2532"]
[BlackElo "2704"]
[TimeControl "180+1"]
[EndTime "10:56:29 PDT"]
[Termination "Uzbektiger1963 won by resignation"]

1. c4 {[%clk 0:03:00.9]} 1... e6 {[%clk 0:02:59.8]} 2. Nc3 {[%clk 0:03:01]} 2...
d5 {[%clk 0:03:00.3]} 3. d4 {[%clk 0:03:01.5]} 3... Nf6 {[%clk 0:02:59.5]} 4.
cxd5 {[%clk 0:03:01.5]} 4... exd5 {[%clk 0:03:00.4]} 5. Bg5 {[%clk 0:03:01.6]}
5... c6 {[%clk 0:03:01]} 6. e3 {[%clk 0:03:02]} 6... Be6 {[%clk 0:03:01.6]} 7.
Bd3 {[%clk 0:02:59]} 7... Nbd7 {[%clk 0:03:02.1]} 8. Nge2 {[%clk 0:02:43.2]}
8... h6 {[%clk 0:03:02.1]} 9. Bh4 {[%clk 0:02:43.3]} 9... g5 {[%clk 0:03:02.6]}
10. Bg3 {[%clk 0:02:43.7]} 10... Nh5 {[%clk 0:03:03.2]} 11. e4 {[%clk
0:02:33.5]} 11... dxe4 {[%clk 0:02:56.3]} 12. Nxe4 {[%clk 0:02:17.1]} 12... Nxg3
{[%clk 0:02:46.7]} 13. hxg3 {[%clk 0:02:14.5]} 13... Bb4+ {[%clk 0:02:43.9]} 14.
N2c3 {[%clk 0:02:14.1]} 14... Qe7 {[%clk 0:02:26.9]} 15. Qe2 {[%clk 0:01:50.4]}
15... O-O-O {[%clk 0:02:18]} 16. O-O {[%clk 0:01:44.1]} 16... h5 {[%clk
0:01:59.4]} 17. Qe3 {[%clk 0:01:11.8]} 17... Rdg8 {[%clk 0:01:11.7]} 18. d5
{[%clk 0:01:11.6]} 18... cxd5 {[%clk 0:01:01.3]} 19. Qxa7 {[%clk 0:01:11.3]}
19... dxe4 {[%clk 0:00:51.1]} 20. Rac1 {[%clk 0:01:10.6]} 20... exd3 {[%clk
0:00:12.2]} 21. Nd5+ {[%clk 0:01:08]} 21... Qc5 {[%clk 0:00:09.8]} 22. Qa8+
{[%clk 0:00:29.9]} 22... Nb8 {[%clk 0:00:09.4]} 23. Ne7+ {[%clk 0:00:20.6]}
23... Kc7 {[%clk 0:00:07.6]} 24. Rxc5+ {[%clk 0:00:17.8]} 24... Bxc5 {[%clk
0:00:08.5]} 25. Nxg8 {[%clk 0:00:17.8]} 25... Rxg8 {[%clk 0:00:08.1]} 26. Rc1
{[%clk 0:00:15.6]} 26... b6 {[%clk 0:00:08.5]} 27. Qa7+ {[%clk 0:00:09.7]} 27...
Kc6 {[%clk 0:00:08.9]} 28. b4 {[%clk 0:00:08.3]} 28... d2 {[%clk 0:00:07.5]} 29.
Rb1 {[%clk 0:00:05]} 29... Rd8 {[%clk 0:00:07]} 30. Qa4+ {[%clk 0:00:04]} 30...
b5 {[%clk 0:00:04.4]} 31. Qc2 {[%clk 0:00:04.4]} 31... d1=Q+ {[%clk 0:00:04]}
32. Rxd1 {[%clk 0:00:03.8]} 32... Rxd1+ {[%clk 0:00:04.9]} 33. Qxd1 {[%clk
0:00:04.7]} 33... Bxb4 {[%clk 0:00:05.1]} 34. Qxh5 {[%clk 0:00:04.6]} 34... Be7
{[%clk 0:00:03.7]} 35. Qf3+ {[%clk 0:00:04]} 35... Kd7 {[%clk 0:00:04.2]} 36. g4
{[%clk 0:00:03.8]} 36... Nc6 {[%clk 0:00:04.8]} 37. Qd3+ {[%clk 0:00:03.3]}
37... Bd6 {[%clk 0:00:03.8]} 38. Qxb5 {[%clk 0:00:03.6]} 38... Ke7 {[%clk
0:00:03.1]} 39. Qxg5+ {[%clk 0:00:03.8]} 39... Kd7 {[%clk 0:00:02.6]} 40. Qd2
{[%clk 0:00:04.7]} 40... Kc7 {[%clk 0:00:03]} 41. g5 {[%clk 0:00:05]} 41... Bc5
{[%clk 0:00:03.4]} 42. a4 {[%clk 0:00:05.1]} 42... Bd4 {[%clk 0:00:03.9]} 43.
Qf4+ {[%clk 0:00:05.3]} 43... Be5 {[%clk 0:00:04.4]} 44. Qc1 {[%clk 0:00:05.8]}
44... Bd6 {[%clk 0:00:04.8]} 45. Qc3 {[%clk 0:00:05.6]} 45... Bb4 {[%clk
0:00:04.2]} 46. Qf6 {[%clk 0:00:05.1]} 46... Be7 {[%clk 0:00:04.1]} 47. Qg7
{[%clk 0:00:05.6]} 47... Bb4 {[%clk 0:00:04.4]} 48. g6 {[%clk 0:00:05.8]} 48...
Kd6 {[%clk 0:00:03.3]} 49. Qf8+ {[%clk 0:00:05.7]} 49... Ke5 {[%clk 0:00:03.1]}
50. Qh8+ {[%clk 0:00:05.2]} 50... Kf5 {[%clk 0:00:03]} 51. g7 {[%clk 0:00:06.1]}
1-0

[Event "*** Titled Tuesday Blitz"]
[Site "Chess.com"]
[Date "2020.04.28"]
[Round "5"]
[White "crossingthestreet"]
[Black "Morshynska"]
[Result "1-0"]
[WhiteElo "2321"]
[BlackElo "2080"]
[TimeControl "180+1"]
[EndTime "10:56:29 PDT"]
[Termination "crossingthestreet won on time"]

1. c4 {[%clk 0:03:00.9]} 1... e5 {[%clk 0:02:59]} 2. Nc3 {[%clk 0:03:01.2]} 2...
Nc6 {[%clk 0:02:57.1]} 3. e3 {[%clk 0:03:00.5]} 3... g6 {[%clk 0:02:55.1]} 4.
Nf3 {[%clk 0:02:56]} 4... Bg7 {[%clk 0:02:54.5]} 5. d4 {[%clk 0:02:56]} 5...
exd4 {[%clk 0:02:55.4]} 6. exd4 {[%clk 0:02:56.3]} 6... d6 {[%clk 0:02:47.6]} 7.
Be2 {[%clk 0:02:55.8]} 7... Nf6 {[%clk 0:02:45.1]} 8. O-O {[%clk 0:02:55.6]}
8... O-O {[%clk 0:02:44.7]} 9. h3 {[%clk 0:02:55.4]} 9... Re8 {[%clk 0:02:41.8]}
10. Bf4 {[%clk 0:02:54.7]} 10... Ne4 {[%clk 0:02:39.8]} 11. Rc1 {[%clk 0:02:09]}
11... Nxc3 {[%clk 0:02:27.9]} 12. Rxc3 {[%clk 0:01:36.8]} 12... Bf5 {[%clk
0:02:20.2]} 13. Rc1 {[%clk 0:01:30.6]} 13... Be4 {[%clk 0:02:08.4]} 14. Be3
{[%clk 0:01:27.7]} 14... h6 {[%clk 0:02:00.3]} 15. Qd2 {[%clk 0:01:26.4]} 15...
Qf6 {[%clk 0:01:56.9]} 16. Rfd1 {[%clk 0:01:22.9]} 16... g5 {[%clk 0:01:47.7]}
17. b3 {[%clk 0:01:22.6]} 17... a5 {[%clk 0:01:43.9]} 18. d5 {[%clk 0:01:22.2]}
18... Bxf3 {[%clk 0:01:28.2]} 19. Bxf3 {[%clk 0:01:19.7]} 19... Ne5 {[%clk
0:01:27.8]} 20. Be2 {[%clk 0:01:19.8]} 20... b6 {[%clk 0:01:17]} 21. Re1 {[%clk
0:01:18]} 21... Ng6 {[%clk 0:01:15.5]} 22. Bf1 {[%clk 0:01:17.5]} 22... Re7
{[%clk 0:01:06.2]} 23. Rcd1 {[%clk 0:01:15.9]} 23... Rae8 {[%clk 0:01:05.2]} 24.
g3 {[%clk 0:01:15.9]} 24... Qc3 {[%clk 0:00:58.5]} 25. Bg2 {[%clk 0:01:13.6]}
25... Qxd2 {[%clk 0:00:56.8]} 26. Bxd2 {[%clk 0:01:14.5]} 26... Bd4 {[%clk
0:00:52.6]} 27. Rxe7 {[%clk 0:01:07.3]} 27... Rxe7 {[%clk 0:00:53.5]} 28. Kf1
{[%clk 0:01:06.8]} 28... Ne5 {[%clk 0:00:41.5]} 29. Bxg5 {[%clk 0:01:04.8]}
29... hxg5 {[%clk 0:00:38]} 30. Rxd4 {[%clk 0:01:05.1]} 30... Kg7 {[%clk
0:00:33]} 31. Re4 {[%clk 0:01:04.8]} 31... Rd7 {[%clk 0:00:20.6]} 32. Ke2 {[%clk
0:01:01.2]} 32... Rd8 {[%clk 0:00:18.2]} 33. Kd2 {[%clk 0:01:00.4]} 33... f5
{[%clk 0:00:18]} 34. Re2 {[%clk 0:00:59.5]} 34... f4 {[%clk 0:00:16.9]} 35. Re4
{[%clk 0:00:57.3]} 35... f3 {[%clk 0:00:15.7]} 36. Bf1 {[%clk 0:00:57]} 36...
Rf8 {[%clk 0:00:14.4]} 37. Ke3 {[%clk 0:00:56.8]} 37... Kg6 {[%clk 0:00:13.8]}
38. a3 {[%clk 0:00:56.3]} 38... Kg7 {[%clk 0:00:13.4]} 39. b4 {[%clk 0:00:56.3]}
39... axb4 {[%clk 0:00:14.3]} 40. axb4 {[%clk 0:00:56.6]} 40... Ra8 {[%clk
0:00:15]} 41. Kd4 {[%clk 0:00:53]} 41... Ra1 {[%clk 0:00:13.9]} 42. Bd3 {[%clk
0:00:52.4]} 42... Rd1 {[%clk 0:00:09.7]} 43. Re3 {[%clk 0:00:52.3]} 43... Kf6
{[%clk 0:00:09.1]} 44. h4 {[%clk 0:00:49.5]} 44... g4 {[%clk 0:00:09.5]} 45. Ke4
{[%clk 0:00:46]} 45... Rd2 {[%clk 0:00:07.9]} 46. c5 {[%clk 0:00:39.7]} 46...
Rxf2 {[%clk 0:00:07.5]} 47. cxb6 {[%clk 0:00:38.5]} 47... cxb6 {[%clk
0:00:08.4]} 48. Kf4 {[%clk 0:00:38.6]} 48... Nxd3+ {[%clk 0:00:07.4]} 49. Rxd3
{[%clk 0:00:38.3]} 49... Rb2 {[%clk 0:00:07]} 50. Kxg4 {[%clk 0:00:33.7]} 50...
f2 {[%clk 0:00:07.3]} 51. Rf3+ {[%clk 0:00:33.9]} 51... Ke5 {[%clk 0:00:07.5]}
52. Rf5+ {[%clk 0:00:32]} 52... Ke4 {[%clk 0:00:06.9]} 53. Rf4+ {[%clk
0:00:32.5]} 53... Ke3 {[%clk 0:00:07.1]} 54. h5 {[%clk 0:00:32.9]} 54... Rxb4
{[%clk 0:00:05.5]} 55. Rxb4 {[%clk 0:00:30.8]} 55... f1=Q {[%clk 0:00:05.4]} 56.
Rf4 {[%clk 0:00:31.6]} 56... Qd1+ {[%clk 0:00:04.5]} 57. Kg5 {[%clk 0:00:31.3]}
57... Qxd5+ {[%clk 0:00:05.3]} 58. Rf5 {[%clk 0:00:31.6]} 58... Qg2 {[%clk
0:00:04.2]} 59. g4 {[%clk 0:00:31]} 59... d5 {[%clk 0:00:02.3]} 60. h6 {[%clk
0:00:31]} 60... d4 {[%clk 0:00:01.7]} 61. h7 {[%clk 0:00:31.1]} 1-0

[Event "*** Titled Tuesday Blitz"]
[Site "Chess.com"]
[Date "2020.04.28"]
[Round "5"]
[White "Mr_Sinigami"]
[Black "Hadza_3"]
[Result "1-0"]
[WhiteElo "2545"]
[BlackElo "2375"]
[TimeControl "180+1"]
[EndTime "10:56:30 PDT"]
[Termination "Mr_Sinigami won by resignation"]

1. Nf3 {[%clk 0:03:00.9]} 1... Nf6 {[%clk 0:02:59.3]} 2. c4 {[%clk 0:02:59.5]}
2... g6 {[%clk 0:02:58.1]} 3. Nc3 {[%clk 0:02:58.3]} 3... Bg7 {[%clk 0:02:59]}
4. e4 {[%clk 0:02:57.4]} 4... d6 {[%clk 0:02:59.2]} 5. d4 {[%clk 0:02:57.6]}
5... O-O {[%clk 0:02:58]} 6. Be2 {[%clk 0:02:58.1]} 6... e5 {[%clk 0:02:58.2]}
7. O-O {[%clk 0:02:58.5]} 7... Nc6 {[%clk 0:02:58.6]} 8. d5 {[%clk 0:02:58.3]}
8... Ne7 {[%clk 0:02:59]} 9. Ne1 {[%clk 0:02:58.9]} 9... Ne8 {[%clk 0:02:59.5]}
10. Be3 {[%clk 0:02:58.8]} 10... f5 {[%clk 0:03:00]} 11. f3 {[%clk 0:02:59.2]}
11... f4 {[%clk 0:03:00.7]} 12. Bf2 {[%clk 0:02:59.6]} 12... g5 {[%clk
0:03:01.3]} 13. c5 {[%clk 0:02:59.7]} 13... Rf7 {[%clk 0:03:01.8]} 14. Rc1
{[%clk 0:02:59.4]} 14... Bf8 {[%clk 0:03:01.7]} 15. Nb5 {[%clk 0:02:59.3]} 15...
a6 {[%clk 0:03:00.6]} 16. Na3 {[%clk 0:02:58.8]} 16... Ng6 {[%clk 0:03:00.9]}
17. cxd6 {[%clk 0:02:56]} 17... cxd6 {[%clk 0:03:01.8]} 18. Nc4 {[%clk
0:02:56.3]} 18... h5 {[%clk 0:03:02.3]} 19. Nb6 {[%clk 0:02:55.3]} 19... Bd7
{[%clk 0:02:59.8]} 20. Nxd7 {[%clk 0:02:45.2]} 20... Qxd7 {[%clk 0:03:00.7]} 21.
Bb6 {[%clk 0:02:27.6]} 21... Nh4 {[%clk 0:02:59.4]} 22. Nd3 {[%clk 0:02:13.2]}
22... Rg7 {[%clk 0:02:58.3]} 23. Nf2 {[%clk 0:02:10.9]} 23... Be7 {[%clk
0:02:54.5]} 24. Rc3 {[%clk 0:02:05.8]} 24... Bd8 {[%clk 0:02:54.3]} 25. Bxd8
{[%clk 0:02:02.2]} 25... Rxd8 {[%clk 0:02:55.2]} 26. h3 {[%clk 0:01:58.2]} 26...
Nf6 {[%clk 0:02:55.3]} 27. Qc2 {[%clk 0:01:44.1]} 27... g4 {[%clk 0:02:54.8]}
28. fxg4 {[%clk 0:01:38.2]} 28... hxg4 {[%clk 0:02:48.2]} 29. Nxg4 {[%clk
0:01:30]} 29... Nxg4 {[%clk 0:02:47.3]} 30. Bxg4 {[%clk 0:01:23]} 30... Rxg4
{[%clk 0:02:46.7]} 31. hxg4 {[%clk 0:01:23.9]} 31... Qxg4 {[%clk 0:02:47.2]} 32.
Rc1 {[%clk 0:01:16.1]} 32... Kh7 {[%clk 0:02:37.4]} 33. Rc7+ {[%clk 0:01:02.8]}
33... Kh6 {[%clk 0:02:36.5]} 34. Rf1 {[%clk 0:00:53.4]} 34... Rg8 {[%clk
0:02:33.7]} 35. Rf2 {[%clk 0:00:33.9]} 35... f3 {[%clk 0:02:07.2]} 36. Qd2+
{[%clk 0:00:09.2]} 36... Rg5 {[%clk 0:02:06.6]} 37. Rc3 {[%clk 0:00:05.6]} 37...
Nxg2 {[%clk 0:01:57.5]} 38. Rxg2 {[%clk 0:00:05.9]} 38... fxg2 {[%clk
0:01:44.3]} 39. Qd3 {[%clk 0:00:05.7]} 39... Rh5 {[%clk 0:01:39.1]} 40. Qe3+
{[%clk 0:00:05.5]} 40... Kg6 {[%clk 0:01:10.9]} 41. Qg3 {[%clk 0:00:05.4]} 41...
Rg5 {[%clk 0:01:00.9]} 42. Qxg4 {[%clk 0:00:03.1]} 42... Rxg4 {[%clk 0:01:01.8]}
43. Rc7 {[%clk 0:00:02.9]} 43... Kg5 {[%clk 0:00:59]} 44. Rxb7 {[%clk
0:00:02.3]} 44... Kf4 {[%clk 0:00:59]} 45. Rb6 {[%clk 0:00:02.8]} 45... Rg6
{[%clk 0:00:45.9]} 46. Rb4 {[%clk 0:00:02.4]} 46... Ke3 {[%clk 0:00:45.3]} 47.
a4 {[%clk 0:00:02.5]} 47... Kd3 {[%clk 0:00:44.6]} 48. a5 {[%clk 0:00:02.6]}
48... Ke3 {[%clk 0:00:40.4]} 49. Rb6 {[%clk 0:00:02.3]} 49... Kxe4 {[%clk
0:00:39.1]} 50. Rxa6 {[%clk 0:00:02.4]} 50... Kf3 {[%clk 0:00:39.6]} 51. Ra8
{[%clk 0:00:02.8]} 51... e4 {[%clk 0:00:40.5]} 52. Rf8+ {[%clk 0:00:03.1]} 52...
Ke2 {[%clk 0:00:40.4]} 53. b4 {[%clk 0:00:04]} 53... e3 {[%clk 0:00:37.7]} 54.
a6 {[%clk 0:00:04]} 54... Rg7 {[%clk 0:00:36.7]} 55. b5 {[%clk 0:00:03.9]} 55...
Kd2 {[%clk 0:00:37.6]} 56. Re8 {[%clk 0:00:03.9]} 56... e2 {[%clk 0:00:37.5]}
57. b6 {[%clk 0:00:04]} 57... e1=Q+ {[%clk 0:00:28.9]} 58. Rxe1 {[%clk
0:00:04.1]} 58... Kxe1 {[%clk 0:00:29.8]} 59. b7 {[%clk 0:00:04.8]} 59... Ke2
{[%clk 0:00:30.7]} 60. b8=Q {[%clk 0:00:04.6]} 60... Kf3 {[%clk 0:00:31.6]} 61.
Qf8+ {[%clk 0:00:05]} 1-0

[Event "*** Titled Tuesday Blitz"]
[Site "Chess.com"]
[Date "2020.04.28"]
[Round "5"]
[White "ZEN-22"]
[Black "Aygehovit1992"]
[Result "0-1"]
[WhiteElo "2488"]
[BlackElo "2674"]
[TimeControl "180+1"]
[EndTime "10:56:31 PDT"]
[Termination "Aygehovit1992 won by resignation"]

1. e4 {[%clk 0:03:00.9]} 1... d6 {[%clk 0:02:27.2]} 2. Nc3 {[%clk 0:02:58.6]}
2... g6 {[%clk 0:02:22.6]} 3. Bc4 {[%clk 0:02:56.5]} 3... Bg7 {[%clk 0:02:22]}
4. f4 {[%clk 0:02:55.8]} 4... c5 {[%clk 0:02:18.9]} 5. Nf3 {[%clk 0:02:53.1]}
5... Nc6 {[%clk 0:02:19.5]} 6. d3 {[%clk 0:02:46.1]} 6... Nf6 {[%clk 0:02:16.7]}
7. h3 {[%clk 0:02:45.4]} 7... O-O {[%clk 0:02:14.9]} 8. Be3 {[%clk 0:02:41.7]}
8... Na5 {[%clk 0:02:14.5]} 9. a3 {[%clk 0:02:36.7]} 9... Nxc4 {[%clk
0:02:14.4]} 10. dxc4 {[%clk 0:02:37.6]} 10... b6 {[%clk 0:02:13.7]} 11. Qd3
{[%clk 0:02:36.7]} 11... Bb7 {[%clk 0:02:11.9]} 12. g4 {[%clk 0:02:32.5]} 12...
a6 {[%clk 0:01:59.5]} 13. Rf1 {[%clk 0:02:22]} 13... b5 {[%clk 0:01:58.5]} 14.
e5 {[%clk 0:02:11.6]} 14... bxc4 {[%clk 0:01:14.4]} 15. Qxc4 {[%clk 0:02:09]}
15... d5 {[%clk 0:01:14.9]} 16. Qxc5 {[%clk 0:02:06.2]} 16... Ne4 {[%clk
0:01:14.7]} 17. Nxe4 {[%clk 0:02:04.3]} 17... dxe4 {[%clk 0:01:15.6]} 18. Nd4
{[%clk 0:02:03.9]} 18... Rc8 {[%clk 0:01:14.7]} 19. Qb4 {[%clk 0:02:03.1]} 19...
Qc7 {[%clk 0:01:12.4]} 20. O-O-O {[%clk 0:02:01.3]} 20... Rfd8 {[%clk
0:01:12.1]} 21. c3 {[%clk 0:02:00.9]} 21... e6 {[%clk 0:01:09.7]} 22. Nb3 {[%clk
0:01:53.8]} 22... Rxd1+ {[%clk 0:01:05.2]} 23. Rxd1 {[%clk 0:01:52.5]} 23... Bd5
{[%clk 0:01:05.8]} 24. Na5 {[%clk 0:01:31.9]} 24... Bf8 {[%clk 0:01:00]} 25. Qb6
{[%clk 0:01:31.2]} 25... Bxa3 {[%clk 0:00:36.9]} 26. Qxc7 {[%clk 0:01:22.4]}
26... Rxc7 {[%clk 0:00:37.8]} 27. c4 {[%clk 0:01:06.9]} 27... Bb4 {[%clk
0:00:32.2]} 28. Bb6 {[%clk 0:01:05]} 28... Rc8 {[%clk 0:00:32.1]} 29. b3 {[%clk
0:00:55.1]} 29... e3 {[%clk 0:00:29.9]} 30. Bxe3 {[%clk 0:00:45.9]} 30... Bxa5
{[%clk 0:00:29.3]} 31. Kb2 {[%clk 0:00:46.4]} 31... Bg2 {[%clk 0:00:27.2]} 32.
h4 {[%clk 0:00:45.2]} 32... Bf3 {[%clk 0:00:26.8]} 33. Rg1 {[%clk 0:00:44.9]}
33... Bd8 {[%clk 0:00:24.5]} 34. h5 {[%clk 0:00:41.9]} 34... a5 {[%clk
0:00:23.3]} 35. hxg6 {[%clk 0:00:41.9]} 35... fxg6 {[%clk 0:00:22.9]} 36. f5
{[%clk 0:00:42.8]} 36... Kf7 {[%clk 0:00:21.7]} 37. Rf1 {[%clk 0:00:41.3]} 37...
Bxg4 {[%clk 0:00:20.7]} 38. fxe6+ {[%clk 0:00:40.9]} 38... Kxe6 {[%clk
0:00:20.9]} 39. Bd4 {[%clk 0:00:40.6]} 39... Be7 {[%clk 0:00:20.1]} 40. Rg1
{[%clk 0:00:35.4]} 40... h5 {[%clk 0:00:19.9]} 41. Ra1 {[%clk 0:00:34.5]} 41...
h4 {[%clk 0:00:19.6]} 42. Rxa5 {[%clk 0:00:33.4]} 42... h3 {[%clk 0:00:20]} 43.
Ra1 {[%clk 0:00:34.2]} 43... Bf3 {[%clk 0:00:18.9]} 44. Bg1 {[%clk 0:00:32.6]}
44... Kxe5 {[%clk 0:00:17.8]} 45. Bh2+ {[%clk 0:00:32.1]} 45... Kf5 {[%clk
0:00:17.4]} 46. Rf1 {[%clk 0:00:31.9]} 46... Bf6+ {[%clk 0:00:16.5]} 47. Kc2
{[%clk 0:00:32]} 47... Kg4 {[%clk 0:00:17.2]} 48. Rg1+ {[%clk 0:00:31.5]} 48...
Bg2 {[%clk 0:00:17.4]} 49. Re1 {[%clk 0:00:30.2]} 49... Bh4 {[%clk 0:00:14.3]}
50. Re6 {[%clk 0:00:27.8]} 50... g5 {[%clk 0:00:13.9]} 51. Re5 {[%clk
0:00:27.5]} 51... Bg3 {[%clk 0:00:13]} 52. Bxg3 {[%clk 0:00:25.7]} 52... Kxg3
{[%clk 0:00:13.9]} 53. Rxg5+ {[%clk 0:00:26.1]} 53... Kh4 {[%clk 0:00:14.5]} 54.
Rg7 {[%clk 0:00:25.8]} 54... Rh8 {[%clk 0:00:14.9]} 55. Kc3 {[%clk 0:00:24.2]}
55... h2 {[%clk 0:00:15.2]} 56. Rxg2 {[%clk 0:00:23.3]} 56... h1=Q {[%clk
0:00:15.4]} 57. Rd2 {[%clk 0:00:24.2]} 57... Qe1 {[%clk 0:00:15.1]} 58. Kc2
{[%clk 0:00:23.5]} 58... Kg3 {[%clk 0:00:15.1]} 59. Rd3+ {[%clk 0:00:23.1]}
59... Kf4 {[%clk 0:00:15.3]} 60. Rd4+ {[%clk 0:00:21.2]} 60... Ke3 {[%clk
0:00:14.7]} 61. Rd5 {[%clk 0:00:22.1]} 61... Rh2+ {[%clk 0:00:14]} 0-1

[Event "*** Titled Tuesday Blitz"]
[Site "Chess.com"]
[Date "2020.04.28"]
[Round "5"]
[White "viktorskliarov"]
[Black "tylityli"]
[Result "0-1"]
[WhiteElo "2641"]
[BlackElo "2338"]
[TimeControl "180+1"]
[EndTime "10:56:36 PDT"]
[Termination "tylityli won by resignation"]

1. e4 {[%clk 0:02:56.8]} 1... c5 {[%clk 0:02:58.9]} 2. Nf3 {[%clk 0:02:56.3]}
2... e6 {[%clk 0:02:59.8]} 3. d4 {[%clk 0:02:55.7]} 3... cxd4 {[%clk 0:03:00.7]}
4. Nxd4 {[%clk 0:02:56.6]} 4... a6 {[%clk 0:03:01.6]} 5. Nc3 {[%clk 0:02:56.7]}
5... Qc7 {[%clk 0:03:01.2]} 6. Be2 {[%clk 0:02:57]} 6... Nf6 {[%clk 0:02:59.7]}
7. O-O {[%clk 0:02:57.2]} 7... b5 {[%clk 0:02:58.6]} 8. Bf3 {[%clk 0:02:52.4]}
8... Bb7 {[%clk 0:02:58.3]} 9. Re1 {[%clk 0:02:52]} 9... d6 {[%clk 0:02:51.5]}
10. a4 {[%clk 0:02:51.1]} 10... b4 {[%clk 0:02:50.6]} 11. Nd5 {[%clk 0:02:51.4]}
11... exd5 {[%clk 0:02:47.7]} 12. exd5+ {[%clk 0:02:52.3]} 12... Kd8 {[%clk
0:02:47.4]} 13. Bg5 {[%clk 0:02:33.6]} 13... Nd7 {[%clk 0:02:46.4]} 14. Qe2
{[%clk 0:02:31.6]} 14... Ne5 {[%clk 0:02:41.9]} 15. Nc6+ {[%clk 0:02:19.8]}
15... Bxc6 {[%clk 0:02:26.5]} 16. dxc6 {[%clk 0:02:19]} 16... Be7 {[%clk
0:02:26.1]} 17. Rad1 {[%clk 0:02:10.5]} 17... Ke8 {[%clk 0:02:13.7]} 18. Bd5
{[%clk 0:02:02.8]} 18... Nxd5 {[%clk 0:02:10.5]} 19. Rxd5 {[%clk 0:01:55.2]}
19... Bxg5 {[%clk 0:02:09.1]} 20. Qg4 {[%clk 0:01:26.5]} 20... Qxc6 {[%clk
0:01:24]} 21. Rdd1 {[%clk 0:01:00]} 21... Bf6 {[%clk 0:01:15.4]} 22. f4 {[%clk
0:00:59.8]} 22... Kf8 {[%clk 0:01:14]} 23. fxe5 {[%clk 0:00:59]} 23... Bxe5
{[%clk 0:01:14.9]} 24. Qxb4 {[%clk 0:00:53.5]} 24... Kg8 {[%clk 0:01:09.6]} 25.
Kh1 {[%clk 0:00:39.4]} 25... g6 {[%clk 0:01:06.3]} 26. Rf1 {[%clk 0:00:36.2]}
26... Kg7 {[%clk 0:01:04.8]} 27. Qb3 {[%clk 0:00:36]} 27... Ra7 {[%clk 0:01:02]}
28. c3 {[%clk 0:00:36.1]} 28... Qb7 {[%clk 0:00:59.7]} 29. Qc2 {[%clk
0:00:34.5]} 29... Rb8 {[%clk 0:00:59]} 30. Rd2 {[%clk 0:00:34.8]} 30... Qb3
{[%clk 0:00:56.7]} 31. Qe4 {[%clk 0:00:32.4]} 31... Qe6 {[%clk 0:00:56.6]} 32.
Rdf2 {[%clk 0:00:30.5]} 32... Re7 {[%clk 0:00:52.5]} 33. Qd3 {[%clk 0:00:27.4]}
33... d5 {[%clk 0:00:51.4]} 34. b4 {[%clk 0:00:26]} 34... Rd8 {[%clk 0:00:49.9]}
35. b5 {[%clk 0:00:25.9]} 35... axb5 {[%clk 0:00:50.2]} 36. axb5 {[%clk
0:00:26.4]} 36... Rc8 {[%clk 0:00:46.7]} 37. Rc2 {[%clk 0:00:24.9]} 37... Rec7
{[%clk 0:00:43.6]} 38. b6 {[%clk 0:00:22.3]} 38... Qxb6 {[%clk 0:00:39.5]} 39.
Qxd5 {[%clk 0:00:22.3]} 39... Qe6 {[%clk 0:00:39]} 40. Qxe6 {[%clk 0:00:19.1]}
40... fxe6 {[%clk 0:00:39.9]} 41. Re2 {[%clk 0:00:19.7]} 41... Bxc3 {[%clk
0:00:37.8]} 42. Rxe6 {[%clk 0:00:19.4]} 42... Rf7 {[%clk 0:00:33.7]} 43. Rxf7+
{[%clk 0:00:18.5]} 43... Kxf7 {[%clk 0:00:34.6]} 44. Re2 {[%clk 0:00:19.1]}
44... Bd4 {[%clk 0:00:25.7]} 45. g3 {[%clk 0:00:19.2]} 45... h5 {[%clk
0:00:24.1]} 46. Kg2 {[%clk 0:00:19.2]} 46... g5 {[%clk 0:00:22.5]} 47. h3 {[%clk
0:00:16.9]} 47... Rc3 {[%clk 0:00:20.6]} 48. Re4 {[%clk 0:00:15.8]} 48... Bc5
{[%clk 0:00:16.8]} 49. h4 {[%clk 0:00:14.4]} 49... g4 {[%clk 0:00:15.3]} 50.
Rf4+ {[%clk 0:00:13.7]} 50... Kg6 {[%clk 0:00:14.1]} 51. Re4 {[%clk 0:00:12.8]}
51... Re3 {[%clk 0:00:13.1]} 52. Rc4 {[%clk 0:00:10.5]} 52... Bd6 {[%clk
0:00:13.2]} 53. Rc6 {[%clk 0:00:09.3]} 53... Rxg3+ {[%clk 0:00:12.9]} 54. Kf2
{[%clk 0:00:09.3]} 54... Rd3 {[%clk 0:00:13.4]} 55. Ke2 {[%clk 0:00:08.5]} 55...
Rd5 {[%clk 0:00:11.6]} 56. Ke3 {[%clk 0:00:08.9]} 56... Kf5 {[%clk 0:00:11.1]}
0-1